Workbook

Sheet Základní údaje
A1: kolej: Vltava, VŠE
A2: OBDOBÍ:
A3: 2022-12-01 | B3: 2026-11-30
A4: Identifikace subjektu podávajícího nabídku:
A5: Název subjektu:
A6: IČ:
A7: Sídlo:
A8: Zapsaná v:
D9: Předpoklad roční inflace
D10: 1. rok | E10: 2. rok | F10: 3. rok | G10: 4. rok
A11: CENA pracovní dny [Kč/hodinu/člověka]: | B11: 0 | C11: =IF(B11<>0,B12/B11,0) -> 0 | D11: 0 | E11: 0.05 | F11: 0.04 | G11: 0.03
A12: CENA víkendy [Kč/hodinu/člověka]: | B12: 0 | C12: =IF(B11<>0,(5*B11+2*B12)/7/B11,0) -> 0 | D12: 1 | E12: =1+E11 -> 1.05 | F12: =1+F11 -> 1.04 | G12: 1.03
D13: 1 | E13: =+D13*E12 -> 1.05 | F13: =+E13*F12 -> 1.092 | G13: 1.12476 | H13: =SUM(D13:G13)/4 -> 1.06669
A15: CENA CELKEM ZA ROK: | B15: ='Rozpis úklidu'!B58:D58 -> 0

Sheet Rozpis úklidu
A1: ='Základní údaje'!A1 -> kolej: Vltava, VŠE | B1: ='Základní údaje'!A2 -> OBDOBÍ: | C1: ='Základní údaje'!A3 -> 2022-12-01 | D1: ='Základní údaje'!B3 -> 2026-11-30
A2: Cena za 1 úklidovou hodinu: | B2: ='Základní údaje'!B11 -> 0 | C2: Kč/hod.
A3: Úklidová jednotka | B3: plocha [m²] | C3: kusy [-] | D3: počet úklidových jednotek | E3: CELKEM [m²] [ks] | F3: uklízí se | G3: počet úklidů na jednotku | H3: sezonně celoročně | I3: sezonní týden od | J3: sezonní týden do | K3: uklízí se v pracovní dny | L3: uklízí se o víkendech | M3: Popis činnosti | N3: Zadavatelem doporučený čas na úklidovou jednotku [min] | O3: Uchazečem navrhovaný čas na úklidovou jednotku [min.] | P3: celkový čas úklidu všech úklidových jednotek [hod.] | Q3: Cena za úklidovou jednotku [Kč] | R3: cena celkem za všechny úklidové jednotky (prac. dny) [Kč] | S3: Cena celkem za období úklidu [Kč] | T3: Poznámka
A4: schody na střechu | B4: 3 | D4: 3 | E4: =B4*D4+C4*D4 -> 9 | F4: týdně | G4: 1 | H4: sezonně | I4: 35 | J4: 52 | K4: 1 | L4: 0 | M4: vytření, setření prachu, včetně zábradlí | N4: 3.5 | O4: 3.5 | P4: =IF(O4=0,N4*D4/60,O4*D4/60) -> 0.175 | Q4: =IF(O4=0,N4/60*$B$2,O4/60*$B$2)*IF(AND(L4=1,K4=0),'Základní údaje'!$C$11,IF(AND(L4=1,K4=1),'Základní údaje'!$C$12,1)) -> 0 | R4: =Q4*D4 -> 0 | S4: =IF(F4="denně",R4*G4*(J4-I4+1)*5*$B$57,IF(F4="týdně",R4*G4*(J4-I4+1)*$B$57,IF(F4="měsíčně",R4*G4*INT((J4-I4+1)/4)*$B$57,IF(F4="čtvrtletně",R4*G4*INT((J4-I4+1)/16)*$B$57,IF(F4="ročně",R4*G4*$B$57,G4*R4*$B$57)))))*IF(L4=1,'Základní údaje'!$C$12,1) -> 0
A5: patro chodba s krčkem | B5: 236 | D5: 5 | E5: 1180 | F5: denně | G5: 1 | H5: sezonně | I5: 35 | J5: 52 | K5: 1 | L5: 0 | M5: Úklidová činnost č. 1 | N5: 40 | O5: 40 | P5: 3.333333333 | Q5: =IF(O5=0,N5/60*$B$2,O5/60*$B$2)*IF(AND(L5=1,K5=0),'Základní údaje'!$C$11,IF(AND(L5=1,K5=1),'Základní údaje'!$C$12,1)) -> 0 | R5: 0 | S5: =IF(F5="denně",R5*G5*(J5-I5+1)*5*$B$57,IF(F5="týdně",R5*G5*(J5-I5+1)*$B$57,IF(F5="měsíčně",R5*G5*INT((J5-I5+1)/4)*$B$57,IF(F5="čtvrtletně",R5*G5*INT((J5-I5+1)/16)*$B$57,IF(F5="ročně",R5*G5*$B$57,G5*R5*$B$57)))))*IF(L5=1,'Základní údaje'!$C$12,1) -> 0
A6: skleněné plochy na chodbách | C6: 1 | D6: 125 | E6: =B6*D6+C6*D6 -> 125 | F6: měsíčně | G6: 1 | H6: sezonně | I6: 35 | J6: 52 | K6: 1 | L6: 0 | M6: umýt, vyleštit | N6: 5 | O6: 5 | P6: =IF(O6=0,N6*D6/60,O6*D6/60) -> 10.41666667 | Q6: =IF(O6=0,N6/60*$B$2,O6/60*$B$2)*IF(AND(L6=1,K6=0),'Základní údaje'!$C$11,IF(AND(L6=1,K6=1),'Základní údaje'!$C$12,1)) -> 0 | R6: =Q6*D6 -> 0 | S6: =IF(F6="denně",R6*G6*(J6-I6+1)*5*$B$57,IF(F6="týdně",R6*G6*(J6-I6+1)*$B$57,IF(F6="měsíčně",R6*G6*INT((J6-I6+1)/4)*$B$57,IF(F6="čtvrtletně",R6*G6*INT((J6-I6+1)/16)*$B$57,IF(F6="ročně",R6*G6*$B$57,G6*R6*$B$57)))))*IF(L6=1,'Základní údaje'!$C$12,1) -> 0
A7: schodiště mezi patry | B7: 4 | D7: 15 | E7: 60 | F7: týdně | G7: 2 | H7: sezonně | I7: 35 | J7: 52 | K7: 1 | L7: 0 | M7: Úklidová činnost č. 1 | N7: 3 | O7: 3 | P7: 0.75 | Q7: =IF(O7=0,N7/60*$B$2,O7/60*$B$2)*IF(AND(L7=1,K7=0),'Základní údaje'!$C$11,IF(AND(L7=1,K7=1),'Základní údaje'!$C$12,1)) -> 0 | R7: 0 | S7: =IF(F7="denně",R7*G7*(J7-I7+1)*5*$B$57,IF(F7="týdně",R7*G7*(J7-I7+1)*$B$57,IF(F7="měsíčně",R7*G7*INT((J7-I7+1)/4)*$B$57,IF(F7="čtvrtletně",R7*G7*INT((J7-I7+1)/16)*$B$57,IF(F7="ročně",R7*G7*$B$57,G7*R7*$B$57)))))*IF(L7=1,'Základní údaje'!$C$12,1) -> 0
A8: zábradlí podél schodiště | C8: 1 | D8: 15 | E8: 15 | F8: týdně | G8: 2 | H8: sezonně | I8: 35 | J8: 52 | K8: 1 | L8: 0 | M8: mytí zábradlí | N8: 2 | O8: 2 | P8: 0.5 | Q8: =IF(O8=0,N8/60*$B$2,O8/60*$B$2)*IF(AND(L8=1,K8=0),'Základní údaje'!$C$11,IF(AND(L8=1,K8=1),'Základní údaje'!$C$12,1)) -> 0 | R8: 0 | S8: =IF(F8="denně",R8*G8*(J8-I8+1)*5*$B$57,IF(F8="týdně",R8*G8*(J8-I8+1)*$B$57,IF(F8="měsíčně",R8*G8*INT((J8-I8+1)/4)*$B$57,IF(F8="čtvrtletně",R8*G8*INT((J8-I8+1)/16)*$B$57,IF(F8="ročně",R8*G8*$B$57,G8*R8*$B$57)))))*IF(L8=1,'Základní údaje'!$C$12,1) -> 0
A9: studovny | B9: 31 | D9: 10 | E9: 310 | F9: denně | G9: 1 | H9: sezonně | I9: 35 | J9: 52 | K9: 1 | L9: 0 | M9: Úklidová činnost č. 3 | N9: 15 | O9: 15 | P9: 2.5 | Q9: =IF(O9=0,N9/60*$B$2,O9/60*$B$2)*IF(AND(L9=1,K9=0),'Základní údaje'!$C$11,IF(AND(L9=1,K9=1),'Základní údaje'!$C$12,1)) -> 0 | R9: 0 | S9: =IF(F9="denně",R9*G9*(J9-I9+1)*5*$B$57,IF(F9="týdně",R9*G9*(J9-I9+1)*$B$57,IF(F9="měsíčně",R9*G9*INT((J9-I9+1)/4)*$B$57,IF(F9="čtvrtletně",R9*G9*INT((J9-I9+1)/16)*$B$57,IF(F9="ročně",R9*G9*$B$57,G9*R9*$B$57)))))*IF(L9=1,'Základní údaje'!$C$12,1) -> 0
A10: sušárny | B10: 6 | D10: 2 | E10: 12 | F10: týdně | G10: 1 | H10: sezonně | I10: 35 | J10: 52 | K10: 1 | L10: 0 | M10: Úklidová činnost č. 3 | N10: 10 | O10: 10 | P10: 0.3333333333 | Q10: =IF(O10=0,N10/60*$B$2,O10/60*$B$2)*IF(AND(L10=1,K10=0),'Základní údaje'!$C$11,IF(AND(L10=1,K10=1),'Základní údaje'!$C$12,1)) -> 0 | R10: 0 | S10: =IF(F10="denně",R10*G10*(J10-I10+1)*5*$B$57,IF(F10="týdně",R10*G10*(J10-I10+1)*$B$57,IF(F10="měsíčně",R10*G10*INT((J10-I10+1)/4)*$B$57,IF(F10="čtvrtletně",R10*G10*INT((J10-I10+1)/16)*$B$57,IF(F10="ročně",R10*G10*$B$57,G10*R10*$B$57)))))*IF(L10=1,'Základní údaje'!$C$12,1) -> 0
A11: společná kuchyňka | C11: 1 | D11: 1 | E11: 1 | F11: týdně | G11: 2 | H11: sezonně | I11: 35 | J11: 52 | K11: 1 | L11: 0 | M11: Úklidová činnost č. 5 | N11: 20 | O11: 20 | P11: 0.3333333333 | Q11: =IF(O11=0,N11/60*$B$2,O11/60*$B$2)*IF(AND(L11=1,K11=0),'Základní údaje'!$C$11,IF(AND(L11=1,K11=1),'Základní údaje'!$C$12,1)) -> 0 | R11: 0 | S11: =IF(F11="denně",R11*G11*(J11-I11+1)*5*$B$57,IF(F11="týdně",R11*G11*(J11-I11+1)*$B$57,IF(F11="měsíčně",R11*G11*INT((J11-I11+1)/4)*$B$57,IF(F11="čtvrtletně",R11*G11*INT((J11-I11+1)/16)*$B$57,IF(F11="ročně",R11*G11*$B$57,G11*R11*$B$57)))))*IF(L11=1,'Základní údaje'!$C$12,1) -> 0
A12: prádelna + pračky a sušičky | B12: 6 | D12: 1 | E12: 6 | F12: denně | G12: 1 | H12: sezonně | I12: 35 | J12: 52 | K12: 1 | L12: 0 | M12: Úklidová činnost č. 4 | N12: 10 | O12: 10 | P12: 0.1666666667 | Q12: =IF(O12=0,N12/60*$B$2,O12/60*$B$2)*IF(AND(L12=1,K12=0),'Základní údaje'!$C$11,IF(AND(L12=1,K12=1),'Základní údaje'!$C$12,1)) -> 0 | R12: 0 | S12: =IF(F12="denně",R12*G12*(J12-I12+1)*5*$B$57,IF(F12="týdně",R12*G12*(J12-I12+1)*$B$57,IF(F12="měsíčně",R12*G12*INT((J12-I12+1)/4)*$B$57,IF(F12="čtvrtletně",R12*G12*INT((J12-I12+1)/16)*$B$57,IF(F12="ročně",R12*G12*$B$57,G12*R12*$B$57)))))*IF(L12=1,'Základní údaje'!$C$12,1) -> 0
A13: místnost úklízeček a úklid.prost. | B13: 9 | D13: 1 | E13: 9 | F13: týdně | G13: 1 | H13: sezonně | I13: 35 | J13: 52 | K13: 1 | L13: 0 | M13: Úklidová činnost č. 3 | N13: 5 | O13: 5 | P13: 0.08333333333 | Q13: =IF(O13=0,N13/60*$B$2,O13/60*$B$2)*IF(AND(L13=1,K13=0),'Základní údaje'!$C$11,IF(AND(L13=1,K13=1),'Základní údaje'!$C$12,1)) -> 0 | R13: 0 | S13: =IF(F13="denně",R13*G13*(J13-I13+1)*5*$B$57,IF(F13="týdně",R13*G13*(J13-I13+1)*$B$57,IF(F13="měsíčně",R13*G13*INT((J13-I13+1)/4)*$B$57,IF(F13="čtvrtletně",R13*G13*INT((J13-I13+1)/16)*$B$57,IF(F13="ročně",R13*G13*$B$57,G13*R13*$B$57)))))*IF(L13=1,'Základní údaje'!$C$12,1) -> 0
A14: 045 sklad lůžkovin | B14: 34 | D14: 1 | E14: 34 | F14: týdně | G14: 2 | H14: sezonně | I14: 35 | J14: 52 | K14: 1 | L14: 0 | M14: Úklidová činnost č. 3 | N14: 8.5 | O14: 8.5 | P14: 0.1416666667 | Q14: =IF(O14=0,N14/60*$B$2,O14/60*$B$2)*IF(AND(L14=1,K14=0),'Základní údaje'!$C$11,IF(AND(L14=1,K14=1),'Základní údaje'!$C$12,1)) -> 0 | R14: 0 | S14: =IF(F14="denně",R14*G14*(J14-I14+1)*5*$B$57,IF(F14="týdně",R14*G14*(J14-I14+1)*$B$57,IF(F14="měsíčně",R14*G14*INT((J14-I14+1)/4)*$B$57,IF(F14="čtvrtletně",R14*G14*INT((J14-I14+1)/16)*$B$57,IF(F14="ročně",R14*G14*$B$57,G14*R14*$B$57)))))*IF(L14=1,'Základní údaje'!$C$12,1) -> 0
A15: 023 sklad | B15: 45 | D15: 1 | E15: 45 | F15: týdně | G15: 1 | H15: sezonně | I15: 35 | J15: 52 | K15: 1 | L15: 0 | M15: Úklidová činnost č. 3 | N15: 11 | O15: 11 | P15: 0.1833333333 | Q15: =IF(O15=0,N15/60*$B$2,O15/60*$B$2)*IF(AND(L15=1,K15=0),'Základní údaje'!$C$11,IF(AND(L15=1,K15=1),'Základní údaje'!$C$12,1)) -> 0 | R15: 0 | S15: =IF(F15="denně",R15*G15*(J15-I15+1)*5*$B$57,IF(F15="týdně",R15*G15*(J15-I15+1)*$B$57,IF(F15="měsíčně",R15*G15*INT((J15-I15+1)/4)*$B$57,IF(F15="čtvrtletně",R15*G15*INT((J15-I15+1)/16)*$B$57,IF(F15="ročně",R15*G15*$B$57,G15*R15*$B$57)))))*IF(L15=1,'Základní údaje'!$C$12,1) -> 0
A16: 024 sklad - nábytek | B16: 45 | D16: 1 | E16: 45 | F16: týdně | G16: 1 | H16: sezonně | I16: 35 | J16: 52 | K16: 1 | L16: 0 | M16: Úklidová činnost č. 3 | N16: 11 | O16: 11 | P16: 0.1833333333 | Q16: =IF(O16=0,N16/60*$B$2,O16/60*$B$2)*IF(AND(L16=1,K16=0),'Základní údaje'!$C$11,IF(AND(L16=1,K16=1),'Základní údaje'!$C$12,1)) -> 0 | R16: 0 | S16: =IF(F16="denně",R16*G16*(J16-I16+1)*5*$B$57,IF(F16="týdně",R16*G16*(J16-I16+1)*$B$57,IF(F16="měsíčně",R16*G16*INT((J16-I16+1)/4)*$B$57,IF(F16="čtvrtletně",R16*G16*INT((J16-I16+1)/16)*$B$57,IF(F16="ročně",R16*G16*$B$57,G16*R16*$B$57)))))*IF(L16=1,'Základní údaje'!$C$12,1) -> 0
A17: =A4 -> schody na střechu | B17: 3 | D17: 3 | E17: 9 | F17: týdně | G17: 1 | H17: sezonně | I17: 1 | J17: 26 | K17: 1 | L17: 0 | M17: vytření, setření prachu, včetně zábradlí | N17: 3.5 | O17: 3.5 | P17: 0.175 | Q17: =IF(O17=0,N17/60*$B$2,O17/60*$B$2)*IF(AND(L17=1,K17=0),'Základní údaje'!$C$11,IF(AND(L17=1,K17=1),'Základní údaje'!$C$12,1)) -> 0 | R17: 0 | S17: =IF(F17="denně",R17*G17*(J17-I17+1)*5*$B$57,IF(F17="týdně",R17*G17*(J17-I17+1)*$B$57,IF(F17="měsíčně",R17*G17*INT((J17-I17+1)/4)*$B$57,IF(F17="čtvrtletně",R17*G17*INT((J17-I17+1)/16)*$B$57,IF(F17="ročně",R17*G17*$B$57,G17*R17*$B$57)))))*IF(L17=1,'Základní údaje'!$C$12,1) -> 0
A18: =A5 -> patro chodba s krčkem | B18: 236 | D18: 5 | E18: 1180 | F18: denně | G18: 1 | H18: sezonně | I18: 1 | J18: 26 | K18: 1 | L18: 0 | M18: Úklidová činnost č. 1 | N18: 40 | O18: 40 | P18: 3.333333333 | Q18: =IF(O18=0,N18/60*$B$2,O18/60*$B$2)*IF(AND(L18=1,K18=0),'Základní údaje'!$C$11,IF(AND(L18=1,K18=1),'Základní údaje'!$C$12,1)) -> 0 | R18: 0 | S18: =IF(F18="denně",R18*G18*(J18-I18+1)*5*$B$57,IF(F18="týdně",R18*G18*(J18-I18+1)*$B$57,IF(F18="měsíčně",R18*G18*INT((J18-I18+1)/4)*$B$57,IF(F18="čtvrtletně",R18*G18*INT((J18-I18+1)/16)*$B$57,IF(F18="ročně",R18*G18*$B$57,G18*R18*$B$57)))))*IF(L18=1,'Základní údaje'!$C$12,1) -> 0
A19: skleněné plochy na chodbách | C19: 1 | D19: 125 | E19: =B19*D19+C19*D19 -> 125 | F19: měsíčně | G19: 1 | H19: sezonně | I19: 1 | J19: 26 | K19: 1 | L19: 0 | M19: umýt, vyleštit | N19: 5 | O19: 5 | P19: =IF(O19=0,N19*D19/60,O19*D19/60) -> 10.41666667 | Q19: =IF(O19=0,N19/60*$B$2,O19/60*$B$2)*IF(AND(L19=1,K19=0),'Základní údaje'!$C$11,IF(AND(L19=1,K19=1),'Základní údaje'!$C$12,1)) -> 0 | R19: =Q19*D19 -> 0 | S19: =IF(F19="denně",R19*G19*(J19-I19+1)*5*$B$57,IF(F19="týdně",R19*G19*(J19-I19+1)*$B$57,IF(F19="měsíčně",R19*G19*INT((J19-I19+1)/4)*$B$57,IF(F19="čtvrtletně",R19*G19*INT((J19-I19+1)/16)*$B$57,IF(F19="ročně",R19*G19*$B$57,G19*R19*$B$57)))))*IF(L19=1,'Základní údaje'!$C$12,1) -> 0
A20: schodiště mezi patry | B20: 4 | D20: 15 | E20: 60 | F20: týdně | G20: 2 | H20: sezonně | I20: 1 | J20: 26 | K20: 1 | L20: 0 | M20: Úklidová činnost č. 1 | N20: 1 | O20: 1 | P20: 0.25 | Q20: =IF(O20=0,N20/60*$B$2,O20/60*$B$2)*IF(AND(L20=1,K20=0),'Základní údaje'!$C$11,IF(AND(L20=1,K20=1),'Základní údaje'!$C$12,1)) -> 0 | R20: 0 | S20: =IF(F20="denně",R20*G20*(J20-I20+1)*5*$B$57,IF(F20="týdně",R20*G20*(J20-I20+1)*$B$57,IF(F20="měsíčně",R20*G20*INT((J20-I20+1)/4)*$B$57,IF(F20="čtvrtletně",R20*G20*INT((J20-I20+1)/16)*$B$57,IF(F20="ročně",R20*G20*$B$57,G20*R20*$B$57)))))*IF(L20=1,'Základní údaje'!$C$12,1) -> 0
A21: zábradlí podél schodiště | C21: 1 | D21: 15 | E21: 15 | F21: týdně | G21: 2 | H21: sezonně | I21: 1 | J21: 26 | K21: 1 | L21: 0 | M21: mytí zábradlí | N21: 1 | O21: 1 | P21: 0.25 | Q21: =IF(O21=0,N21/60*$B$2,O21/60*$B$2)*IF(AND(L21=1,K21=0),'Základní údaje'!$C$11,IF(AND(L21=1,K21=1),'Základní údaje'!$C$12,1)) -> 0 | R21: 0 | S21: =IF(F21="denně",R21*G21*(J21-I21+1)*5*$B$57,IF(F21="týdně",R21*G21*(J21-I21+1)*$B$57,IF(F21="měsíčně",R21*G21*INT((J21-I21+1)/4)*$B$57,IF(F21="čtvrtletně",R21*G21*INT((J21-I21+1)/16)*$B$57,IF(F21="ročně",R21*G21*$B$57,G21*R21*$B$57)))))*IF(L21=1,'Základní údaje'!$C$12,1) -> 0
A22: studovny | B22: 31 | D22: 10 | E22: 310 | F22: denně | G22: 1 | H22: sezonně | I22: 1 | J22: 26 | K22: 1 | L22: 0 | M22: Úklidová činnost č. 3 | N22: 15 | O22: 15 | P22: 2.5 | Q22: =IF(O22=0,N22/60*$B$2,O22/60*$B$2)*IF(AND(L22=1,K22=0),'Základní údaje'!$C$11,IF(AND(L22=1,K22=1),'Základní údaje'!$C$12,1)) -> 0 | R22: 0 | S22: =IF(F22="denně",R22*G22*(J22-I22+1)*5*$B$57,IF(F22="týdně",R22*G22*(J22-I22+1)*$B$57,IF(F22="měsíčně",R22*G22*INT((J22-I22+1)/4)*$B$57,IF(F22="čtvrtletně",R22*G22*INT((J22-I22+1)/16)*$B$57,IF(F22="ročně",R22*G22*$B$57,G22*R22*$B$57)))))*IF(L22=1,'Základní údaje'!$C$12,1) -> 0
A23: sušárny | B23: 6 | D23: 2 | E23: 12 | F23: týdně | G23: 1 | H23: sezonně | I23: 1 | J23: 26 | K23: 1 | L23: 0 | M23: Úklidová činnost č. 3 | N23: 10 | O23: 10 | P23: 0.3333333333 | Q23: =IF(O23=0,N23/60*$B$2,O23/60*$B$2)*IF(AND(L23=1,K23=0),'Základní údaje'!$C$11,IF(AND(L23=1,K23=1),'Základní údaje'!$C$12,1)) -> 0 | R23: 0 | S23: =IF(F23="denně",R23*G23*(J23-I23+1)*5*$B$57,IF(F23="týdně",R23*G23*(J23-I23+1)*$B$57,IF(F23="měsíčně",R23*G23*INT((J23-I23+1)/4)*$B$57,IF(F23="čtvrtletně",R23*G23*INT((J23-I23+1)/16)*$B$57,IF(F23="ročně",R23*G23*$B$57,G23*R23*$B$57)))))*IF(L23=1,'Základní údaje'!$C$12,1) -> 0
A24: společná kuchyňka | C24: 1 | D24: 1 | E24: =B24*D24+C24*D24 -> 1 | F24: týdně | G24: 2 | H24: sezonně | I24: 1 | J24: 26 | K24: 1 | L24: 0 | M24: Úklidová činnost č. 5 | N24: 20 | O24: 20 | P24: =IF(O24=0,N24*D24/60,O24*D24/60) -> 0.3333333333 | Q24: =IF(O24=0,N24/60*$B$2,O24/60*$B$2)*IF(AND(L24=1,K24=0),'Základní údaje'!$C$11,IF(AND(L24=1,K24=1),'Základní údaje'!$C$12,1)) -> 0 | R24: =Q24*D24 -> 0 | S24: =IF(F24="denně",R24*G24*(J24-I24+1)*5*$B$57,IF(F24="týdně",R24*G24*(J24-I24+1)*$B$57,IF(F24="měsíčně",R24*G24*INT((J24-I24+1)/4)*$B$57,IF(F24="čtvrtletně",R24*G24*INT((J24-I24+1)/16)*$B$57,IF(F24="ročně",R24*G24*$B$57,G24*R24*$B$57)))))*IF(L24=1,'Základní údaje'!$C$12,1) -> 0
A25: prádelna + pračky a sušičky | B25: 6 | D25: 1 | E25: 6 | F25: denně | G25: 1 | H25: sezonně | I25: 1 | J25: 26 | K25: 1 | L25: 0 | M25: Úklidová činnost č. 4 | N25: 10 | O25: 10 | P25: 0.1666666667 | Q25: =IF(O25=0,N25/60*$B$2,O25/60*$B$2)*IF(AND(L25=1,K25=0),'Základní údaje'!$C$11,IF(AND(L25=1,K25=1),'Základní údaje'!$C$12,1)) -> 0 | R25: 0 | S25: =IF(F25="denně",R25*G25*(J25-I25+1)*5*$B$57,IF(F25="týdně",R25*G25*(J25-I25+1)*$B$57,IF(F25="měsíčně",R25*G25*INT((J25-I25+1)/4)*$B$57,IF(F25="čtvrtletně",R25*G25*INT((J25-I25+1)/16)*$B$57,IF(F25="ročně",R25*G25*$B$57,G25*R25*$B$57)))))*IF(L25=1,'Základní údaje'!$C$12,1) -> 0
A26: místnost úklízeček a úklid.prost. | B26: 9 | D26: 1 | E26: 9 | F26: týdně | G26: 1 | H26: sezonně | I26: 1 | J26: 26 | K26: 1 | L26: 0 | M26: Úklidová činnost č. 3 | N26: 5 | O26: 5 | P26: 0.08333333333 | Q26: =IF(O26=0,N26/60*$B$2,O26/60*$B$2)*IF(AND(L26=1,K26=0),'Základní údaje'!$C$11,IF(AND(L26=1,K26=1),'Základní údaje'!$C$12,1)) -> 0 | R26: 0 | S26: =IF(F26="denně",R26*G26*(J26-I26+1)*5*$B$57,IF(F26="týdně",R26*G26*(J26-I26+1)*$B$57,IF(F26="měsíčně",R26*G26*INT((J26-I26+1)/4)*$B$57,IF(F26="čtvrtletně",R26*G26*INT((J26-I26+1)/16)*$B$57,IF(F26="ročně",R26*G26*$B$57,G26*R26*$B$57)))))*IF(L26=1,'Základní údaje'!$C$12,1) -> 0
A27: 045 sklad lůžkovin | B27: 34 | D27: 1 | E27: 34 | F27: týdně | G27: 2 | H27: sezonně | I27: 1 | J27: 26 | K27: 1 | L27: 0 | M27: Úklidová činnost č. 3 | N27: 8.5 | O27: 8.5 | P27: 0.1416666667 | Q27: =IF(O27=0,N27/60*$B$2,O27/60*$B$2)*IF(AND(L27=1,K27=0),'Základní údaje'!$C$11,IF(AND(L27=1,K27=1),'Základní údaje'!$C$12,1)) -> 0 | R27: 0 | S27: =IF(F27="denně",R27*G27*(J27-I27+1)*5*$B$57,IF(F27="týdně",R27*G27*(J27-I27+1)*$B$57,IF(F27="měsíčně",R27*G27*INT((J27-I27+1)/4)*$B$57,IF(F27="čtvrtletně",R27*G27*INT((J27-I27+1)/16)*$B$57,IF(F27="ročně",R27*G27*$B$57,G27*R27*$B$57)))))*IF(L27=1,'Základní údaje'!$C$12,1) -> 0
A28: 023 sklad | B28: 45 | D28: 1 | E28: =B28*D28+C28*D28 -> 45 | F28: týdně | G28: 1 | H28: sezonně | I28: 1 | J28: 26 | K28: 1 | L28: 0 | M28: Úklidová činnost č. 3 | N28: 11 | O28: 11 | P28: =IF(O28=0,N28*D28/60,O28*D28/60) -> 0.1833333333 | Q28: =IF(O28=0,N28/60*$B$2,O28/60*$B$2)*IF(AND(L28=1,K28=0),'Základní údaje'!$C$11,IF(AND(L28=1,K28=1),'Základní údaje'!$C$12,1)) -> 0 | R28: =Q28*D28 -> 0 | S28: =IF(F28="denně",R28*G28*(J28-I28+1)*5*$B$57,IF(F28="týdně",R28*G28*(J28-I28+1)*$B$57,IF(F28="měsíčně",R28*G28*INT((J28-I28+1)/4)*$B$57,IF(F28="čtvrtletně",R28*G28*INT((J28-I28+1)/16)*$B$57,IF(F28="ročně",R28*G28*$B$57,G28*R28*$B$57)))))*IF(L28=1,'Základní údaje'!$C$12,1) -> 0
A29: 024 sklad - nábytek | B29: 45 | D29: 1 | E29: 45 | F29: týdně | G29: 1 | H29: sezonně | I29: 1 | J29: 26 | K29: 1 | L29: 0 | M29: Úklidová činnost č. 3 | N29: 11 | O29: 11 | P29: 0.1833333333 | Q29: =IF(O29=0,N29/60*$B$2,O29/60*$B$2)*IF(AND(L29=1,K29=0),'Základní údaje'!$C$11,IF(AND(L29=1,K29=1),'Základní údaje'!$C$12,1)) -> 0 | R29: 0 | S29: =IF(F29="denně",R29*G29*(J29-I29+1)*5*$B$57,IF(F29="týdně",R29*G29*(J29-I29+1)*$B$57,IF(F29="měsíčně",R29*G29*INT((J29-I29+1)/4)*$B$57,IF(F29="čtvrtletně",R29*G29*INT((J29-I29+1)/16)*$B$57,IF(F29="ročně",R29*G29*$B$57,G29*R29*$B$57)))))*IF(L29=1,'Základní údaje'!$C$12,1) -> 0
A30: STUDENTSKÁ KAPACITA
A31: pokoj generální úklid | B31: 14 | D31: 266 | E31: 3724 | F31: ročně | G31: 1 | H31: celoročně | I31: 1 | J31: 52 | K31: 1 | L31: 1 | M31: Úklidová činnost č. 6 | N31: 30 | O31: 30 | P31: 133 | Q31: =IF(O31=0,N31/60*$B$2,O31/60*$B$2)*IF(AND(L31=1,K31=0),'Základní údaje'!$C$11,IF(AND(L31=1,K31=1),'Základní údaje'!$C$12,1)) -> 0 | R31: 0 | S31: =IF(F31="denně",R31*G31*(J31-I31+1)*5*$B$57,IF(F31="týdně",R31*G31*(J31-I31+1)*$B$57,IF(F31="měsíčně",R31*G31*INT((J31-I31+1)/4)*$B$57,IF(F31="čtvrtletně",R31*G31*INT((J31-I31+1)/16)*$B$57,IF(F31="ročně",R31*G31*$B$57,G31*R31*$B$57)))))*IF(L31=1,'Základní údaje'!$C$12,1) -> 0
A32: předsíň - generální úklid | B32: 15 | D32: 133 | E32: =B32*D32+C32*D32 -> 1995 | F32: ročně | G32: 1 | H32: celoročně | I32: 1 | J32: 52 | K32: 1 | L32: 1 | M32: Úklidová činnost č. 7 | N32: 25 | O32: 25 | P32: =IF(O32=0,N32*D32/60,O32*D32/60) -> 55.41666667 | Q32: =IF(O32=0,N32/60*$B$2,O32/60*$B$2)*IF(AND(L32=1,K32=0),'Základní údaje'!$C$11,IF(AND(L32=1,K32=1),'Základní údaje'!$C$12,1)) -> 0 | R32: =Q32*D32 -> 0 | S32: =IF(F32="denně",R32*G32*(J32-I32+1)*5*$B$57,IF(F32="týdně",R32*G32*(J32-I32+1)*$B$57,IF(F32="měsíčně",R32*G32*INT((J32-I32+1)/4)*$B$57,IF(F32="čtvrtletně",R32*G32*INT((J32-I32+1)/16)*$B$57,IF(F32="ročně",R32*G32*$B$57,G32*R32*$B$57)))))*IF(L32=1,'Základní údaje'!$C$12,1) -> 0
A33: koupelna se sprchou -generální úklid | B33: 2 | D33: 133 | E33: =B33*D33+C33*D33 -> 266 | F33: ročně | G33: 1 | H33: celoročně | I33: 1 | J33: 52 | K33: 1 | L33: 1 | M33: Úklidová činnost č. 15 | N33: 10 | O33: 10 | P33: =IF(O33=0,N33*D33/60,O33*D33/60) -> 22.16666667 | Q33: =IF(O33=0,N33/60*$B$2,O33/60*$B$2)*IF(AND(L33=1,K33=0),'Základní údaje'!$C$11,IF(AND(L33=1,K33=1),'Základní údaje'!$C$12,1)) -> 0 | R33: =Q33*D33 -> 0 | S33: =IF(F33="denně",R33*G33*(J33-I33+1)*5*$B$57,IF(F33="týdně",R33*G33*(J33-I33+1)*$B$57,IF(F33="měsíčně",R33*G33*INT((J33-I33+1)/4)*$B$57,IF(F33="čtvrtletně",R33*G33*INT((J33-I33+1)/16)*$B$57,IF(F33="ročně",R33*G33*$B$57,G33*R33*$B$57)))))*IF(L33=1,'Základní údaje'!$C$12,1) -> 0
A34: wc - generální úklid | C34: 1 | D34: 133 | E34: =B34*D34+C34*D34 -> 133 | F34: ročně | G34: 1 | H34: celoročně | I34: 1 | J34: 52 | K34: 1 | L34: 1 | M34: Úklidová činnost č. 14 | N34: 8 | O34: 8 | P34: =IF(O34=0,N34*D34/60,O34*D34/60) -> 17.73333333 | Q34: =IF(O34=0,N34/60*$B$2,O34/60*$B$2)*IF(AND(L34=1,K34=0),'Základní údaje'!$C$11,IF(AND(L34=1,K34=1),'Základní údaje'!$C$12,1)) -> 0 | R34: =Q34*D34 -> 0 | S34: =IF(F34="denně",R34*G34*(J34-I34+1)*5*$B$57,IF(F34="týdně",R34*G34*(J34-I34+1)*$B$57,IF(F34="měsíčně",R34*G34*INT((J34-I34+1)/4)*$B$57,IF(F34="čtvrtletně",R34*G34*INT((J34-I34+1)/16)*$B$57,IF(F34="ročně",R34*G34*$B$57,G34*R34*$B$57)))))*IF(L34=1,'Základní údaje'!$C$12,1) -> 0
A35: kuchyňka - generální úklid | C35: 1 | D35: 133 | E35: =B35*D35+C35*D35 -> 133 | F35: ročně | G35: 1 | H35: celoročně | I35: 1 | J35: 52 | K35: 1 | L35: 1 | M35: Úklidová činnost č. 5 | N35: 12 | O35: 12 | P35: =IF(O35=0,N35*D35/60,O35*D35/60) -> 26.6 | Q35: =IF(O35=0,N35/60*$B$2,O35/60*$B$2)*IF(AND(L35=1,K35=0),'Základní údaje'!$C$11,IF(AND(L35=1,K35=1),'Základní údaje'!$C$12,1)) -> 0 | R35: =Q35*D35 -> 0 | S35: =IF(F35="denně",R35*G35*(J35-I35+1)*5*$B$57,IF(F35="týdně",R35*G35*(J35-I35+1)*$B$57,IF(F35="měsíčně",R35*G35*INT((J35-I35+1)/4)*$B$57,IF(F35="čtvrtletně",R35*G35*INT((J35-I35+1)/16)*$B$57,IF(F35="ročně",R35*G35*$B$57,G35*R35*$B$57)))))*IF(L35=1,'Základní údaje'!$C$12,1) -> 0
A36: předsíň | B36: 15 | D36: 133 | E36: 1995 | F36: ročně | G36: 2 | H36: celoročně | I36: 1 | J36: 52 | K36: 1 | L36: 0 | M36: Úklidová činnost č. 7 | N36: 25 | O36: 25 | P36: 55.41666667 | Q36: =IF(O36=0,N36/60*$B$2,O36/60*$B$2)*IF(AND(L36=1,K36=0),'Základní údaje'!$C$11,IF(AND(L36=1,K36=1),'Základní údaje'!$C$12,1)) -> 0 | R36: 0 | S36: =IF(F36="denně",R36*G36*(J36-I36+1)*5*$B$57,IF(F36="týdně",R36*G36*(J36-I36+1)*$B$57,IF(F36="měsíčně",R36*G36*INT((J36-I36+1)/4)*$B$57,IF(F36="čtvrtletně",R36*G36*INT((J36-I36+1)/16)*$B$57,IF(F36="ročně",R36*G36*$B$57,G36*R36*$B$57)))))*IF(L36=1,'Základní údaje'!$C$12,1) -> 0
A37: wc | C37: 1 | D37: 133 | E37: 133 | F37: ročně | G37: 2 | H37: celoročně | I37: 1 | J37: 52 | K37: 1 | L37: 0 | M37: Úklidová činnost č. 14 | N37: 8 | O37: 8 | P37: 17.73333333 | Q37: =IF(O37=0,N37/60*$B$2,O37/60*$B$2)*IF(AND(L37=1,K37=0),'Základní údaje'!$C$11,IF(AND(L37=1,K37=1),'Základní údaje'!$C$12,1)) -> 0 | R37: 0 | S37: =IF(F37="denně",R37*G37*(J37-I37+1)*5*$B$57,IF(F37="týdně",R37*G37*(J37-I37+1)*$B$57,IF(F37="měsíčně",R37*G37*INT((J37-I37+1)/4)*$B$57,IF(F37="čtvrtletně",R37*G37*INT((J37-I37+1)/16)*$B$57,IF(F37="ročně",R37*G37*$B$57,G37*R37*$B$57)))))*IF(L37=1,'Základní údaje'!$C$12,1) -> 0
A38: koupelna se sprchou | B38: 2 | D38: 133 | E38: 266 | F38: ročně | G38: 2 | H38: celoročně | I38: 1 | J38: 52 | K38: 1 | L38: 0 | M38: Úklidová činnost č. 15 | N38: 10 | O38: 10 | P38: 22.16666667 | Q38: =IF(O38=0,N38/60*$B$2,O38/60*$B$2)*IF(AND(L38=1,K38=0),'Základní údaje'!$C$11,IF(AND(L38=1,K38=1),'Základní údaje'!$C$12,1)) -> 0 | R38: 0 | S38: =IF(F38="denně",R38*G38*(J38-I38+1)*5*$B$57,IF(F38="týdně",R38*G38*(J38-I38+1)*$B$57,IF(F38="měsíčně",R38*G38*INT((J38-I38+1)/4)*$B$57,IF(F38="čtvrtletně",R38*G38*INT((J38-I38+1)/16)*$B$57,IF(F38="ročně",R38*G38*$B$57,G38*R38*$B$57)))))*IF(L38=1,'Základní údaje'!$C$12,1) -> 0
A39: kuchyňka | C39: 1 | D39: 133 | E39: 133 | F39: ročně | G39: 2 | H39: celoročně | I39: 1 | J39: 52 | K39: 1 | L39: 0 | M39: Úklidová činnost č. 5 | N39: 12 | O39: 12 | P39: 26.6 | Q39: =IF(O39=0,N39/60*$B$2,O39/60*$B$2)*IF(AND(L39=1,K39=0),'Základní údaje'!$C$11,IF(AND(L39=1,K39=1),'Základní údaje'!$C$12,1)) -> 0 | R39: 0 | S39: =IF(F39="denně",R39*G39*(J39-I39+1)*5*$B$57,IF(F39="týdně",R39*G39*(J39-I39+1)*$B$57,IF(F39="měsíčně",R39*G39*INT((J39-I39+1)/4)*$B$57,IF(F39="čtvrtletně",R39*G39*INT((J39-I39+1)/16)*$B$57,IF(F39="ročně",R39*G39*$B$57,G39*R39*$B$57)))))*IF(L39=1,'Základní údaje'!$C$12,1) -> 0
A40: HOTEL | H40: celoročně | I40: 1 | J40: 52
A41: hotelový dvolůžkový, po odjezdu | B41: 50 | D41: 1 | E41: =B41*D41+C41*D41 -> 50 | F41: měsíčně | G41: 1 | H41: celoročně | I41: 1 | J41: 52 | K41: 1 | L41: 1 | M41: Úklidová činnost č. 8 | N41: 90 | O41: 90 | P41: =IF(O41=0,N41*D41/60,O41*D41/60) -> 1.5 | Q41: =IF(O41=0,N41/60*$B$2,O41/60*$B$2)*IF(AND(L41=1,K41=0),'Základní údaje'!$C$11,IF(AND(L41=1,K41=1),'Základní údaje'!$C$12,1)) -> 0 | R41: =Q41*D41 -> 0 | S41: =IF(F41="denně",R41*G41*(J41-I41+1)*5*$B$57,IF(F41="týdně",R41*G41*(J41-I41+1)*$B$57,IF(F41="měsíčně",R41*G41*INT((J41-I41+1)/4)*$B$57,IF(F41="čtvrtletně",R41*G41*INT((J41-I41+1)/16)*$B$57,IF(F41="ročně",R41*G41*$B$57,G41*R41*$B$57)))))*IF(L41=1,'Základní údaje'!$C$12,1) -> 0
A42: hotelový dvolůžkový, průběžně | B42: 50 | D42: 1 | E42: 50 | F42: měsíčně | G42: 1 | H42: celoročně | I42: 1 | J42: 52 | K42: 1 | L42: 1 | M42: Úklidová činnost č. 9 | N42: 20 | O42: 20 | P42: 0.3333333333 | Q42: =IF(O42=0,N42/60*$B$2,O42/60*$B$2)*IF(AND(L42=1,K42=0),'Základní údaje'!$C$11,IF(AND(L42=1,K42=1),'Základní údaje'!$C$12,1)) -> 0 | R42: 0 | S42: =IF(F42="denně",R42*G42*(J42-I42+1)*5*$B$57,IF(F42="týdně",R42*G42*(J42-I42+1)*$B$57,IF(F42="měsíčně",R42*G42*INT((J42-I42+1)/4)*$B$57,IF(F42="čtvrtletně",R42*G42*INT((J42-I42+1)/16)*$B$57,IF(F42="ročně",R42*G42*$B$57,G42*R42*$B$57)))))*IF(L42=1,'Základní údaje'!$C$12,1) -> 0
A43: Ostatní
A44: okna velká | C44: 1 | D44: 500 | E44: 500 | F44: ročně | G44: 1 | H44: celoročně | I44: 1 | J44: 52 | K44: 1 | L44: 0 | M44: Úklidová činnost č. 12 | N44: 30 | O44: 30 | P44: 250 | Q44: =IF(O44=0,N44/60*$B$2,O44/60*$B$2)*IF(AND(L44=1,K44=0),'Základní údaje'!$C$11,IF(AND(L44=1,K44=1),'Základní údaje'!$C$12,1)) -> 0 | R44: 0 | S44: =IF(F44="denně",R44*G44*(J44-I44+1)*5*$B$57,IF(F44="týdně",R44*G44*(J44-I44+1)*$B$57,IF(F44="měsíčně",R44*G44*INT((J44-I44+1)/4)*$B$57,IF(F44="čtvrtletně",R44*G44*INT((J44-I44+1)/16)*$B$57,IF(F44="ročně",R44*G44*$B$57,G44*R44*$B$57)))))*IF(L44=1,'Základní údaje'!$C$12,1) -> 0
A45: balkonové dveře | C45: 1 | D45: 52 | E45: 52 | F45: ročně | G45: 1 | H45: celoročně | I45: 1 | J45: 52 | K45: 1 | L45: 0 | M45: Úklidová činnost č. 12 | N45: 30 | O45: 30 | P45: 26 | Q45: =IF(O45=0,N45/60*$B$2,O45/60*$B$2)*IF(AND(L45=1,K45=0),'Základní údaje'!$C$11,IF(AND(L45=1,K45=1),'Základní údaje'!$C$12,1)) -> 0 | R45: 0 | S45: =IF(F45="denně",R45*G45*(J45-I45+1)*5*$B$57,IF(F45="týdně",R45*G45*(J45-I45+1)*$B$57,IF(F45="měsíčně",R45*G45*INT((J45-I45+1)/4)*$B$57,IF(F45="čtvrtletně",R45*G45*INT((J45-I45+1)/16)*$B$57,IF(F45="ročně",R45*G45*$B$57,G45*R45*$B$57)))))*IF(L45=1,'Základní údaje'!$C$12,1) -> 0
A46: malé okno | C46: 1 | D46: 65 | E46: 65 | F46: ročně | G46: 1 | H46: celoročně | I46: 1 | J46: 52 | K46: 1 | L46: 0 | M46: Úklidová činnost č. 12 | N46: 20 | O46: 20 | P46: 21.66666667 | Q46: =IF(O46=0,N46/60*$B$2,O46/60*$B$2)*IF(AND(L46=1,K46=0),'Základní údaje'!$C$11,IF(AND(L46=1,K46=1),'Základní údaje'!$C$12,1)) -> 0 | R46: 0 | S46: =IF(F46="denně",R46*G46*(J46-I46+1)*5*$B$57,IF(F46="týdně",R46*G46*(J46-I46+1)*$B$57,IF(F46="měsíčně",R46*G46*INT((J46-I46+1)/4)*$B$57,IF(F46="čtvrtletně",R46*G46*INT((J46-I46+1)/16)*$B$57,IF(F46="ročně",R46*G46*$B$57,G46*R46*$B$57)))))*IF(L46=1,'Základní údaje'!$C$12,1) -> 0
A47: čistění matrací | C47: 1 | D47: 532 | E47: 532 | F47: ročně | G47: 1 | H47: celoročně | I47: 1 | J47: 52 | K47: 1 | L47: 0 | M47: Úklidová činnost č. 13 | N47: 15 | O47: 15 | P47: 133 | Q47: =IF(O47=0,N47/60*$B$2,O47/60*$B$2)*IF(AND(L47=1,K47=0),'Základní údaje'!$C$11,IF(AND(L47=1,K47=1),'Základní údaje'!$C$12,1)) -> 0 | R47: 0 | S47: =IF(F47="denně",R47*G47*(J47-I47+1)*5*$B$57,IF(F47="týdně",R47*G47*(J47-I47+1)*$B$57,IF(F47="měsíčně",R47*G47*INT((J47-I47+1)/4)*$B$57,IF(F47="čtvrtletně",R47*G47*INT((J47-I47+1)/16)*$B$57,IF(F47="ročně",R47*G47*$B$57,G47*R47*$B$57)))))*IF(L47=1,'Základní údaje'!$C$12,1) -> 0
A48: kontrola stavu úklidu při odjezdu | C48: 1 | D48: 266 | E48: 266 | F48: ročně | G48: 1 | H48: celoročně | I48: 1 | J48: 52 | K48: 1 | L48: 0 | M48: Úklidová činnost č. 10 | N48: 8 | O48: 8 | P48: 35.46666667 | Q48: =IF(O48=0,N48/60*$B$2,O48/60*$B$2)*IF(AND(L48=1,K48=0),'Základní údaje'!$C$11,IF(AND(L48=1,K48=1),'Základní údaje'!$C$12,1)) -> 0 | R48: 0 | S48: =IF(F48="denně",R48*G48*(J48-I48+1)*5*$B$57,IF(F48="týdně",R48*G48*(J48-I48+1)*$B$57,IF(F48="měsíčně",R48*G48*INT((J48-I48+1)/4)*$B$57,IF(F48="čtvrtletně",R48*G48*INT((J48-I48+1)/16)*$B$57,IF(F48="ročně",R48*G48*$B$57,G48*R48*$B$57)))))*IF(L48=1,'Základní údaje'!$C$12,1) -> 0
E49: =B49*D49+C49*D49 -> 0 | P49: =IF(O49=0,N49*D49/60,O49*D49/60) -> 0 | Q49: =IF(O49=0,N49/60*$B$2,O49/60*$B$2)*IF(AND(L49=1,K49=0),'Základní údaje'!$C$11,IF(AND(L49=1,K49=1),'Základní údaje'!$C$12,1)) -> 0 | R49: =Q49*D49 -> 0 | S49: =IF(F49="denně",R49*G49*(J49-I49+1)*5*$B$57,IF(F49="týdně",R49*G49*(J49-I49+1)*$B$57,IF(F49="měsíčně",R49*G49*INT((J49-I49+1)/4)*$B$57,IF(F49="čtvrtletně",R49*G49*INT((J49-I49+1)/16)*$B$57,IF(F49="ročně",R49*G49*$B$57,G49*R49*$B$57)))))*IF(L49=1,'Základní údaje'!$C$12,1) -> 0
E50: 0 | P50: 0 | Q50: =IF(O50=0,N50/60*$B$2,O50/60*$B$2)*IF(AND(L50=1,K50=0),'Základní údaje'!$C$11,IF(AND(L50=1,K50=1),'Základní údaje'!$C$12,1)) -> 0 | R50: 0 | S50: =IF(F50="denně",R50*G50*(J50-I50+1)*5*$B$57,IF(F50="týdně",R50*G50*(J50-I50+1)*$B$57,IF(F50="měsíčně",R50*G50*INT((J50-I50+1)/4)*$B$57,IF(F50="čtvrtletně",R50*G50*INT((J50-I50+1)/16)*$B$57,IF(F50="ročně",R50*G50*$B$57,G50*R50*$B$57)))))*IF(L50=1,'Základní údaje'!$C$12,1) -> 0
E51: =B51*D51+C51*D51 -> 0 | P51: =IF(O51=0,N51*D51/60,O51*D51/60) -> 0 | Q51: =IF(O51=0,N51/60*$B$2,O51/60*$B$2)*IF(AND(L51=1,K51=0),'Základní údaje'!$C$11,IF(AND(L51=1,K51=1),'Základní údaje'!$C$12,1)) -> 0 | R51: =Q51*D51 -> 0 | S51: =IF(F51="denně",R51*G51*(J51-I51+1)*5*$B$57,IF(F51="týdně",R51*G51*(J51-I51+1)*$B$57,IF(F51="měsíčně",R51*G51*INT((J51-I51+1)/4)*$B$57,IF(F51="čtvrtletně",R51*G51*INT((J51-I51+1)/16)*$B$57,IF(F51="ročně",R51*G51*$B$57,G51*R51*$B$57)))))*IF(L51=1,'Základní údaje'!$C$12,1) -> 0
A52: Plocha celkem | B52: =SUMPRODUCT(B4:B51,D4:D51) -> 11766 | C52: [m²]
A53: Počet kusů celkem | B53: =SUMPRODUCT(C4:C38,D4:D38) -> 681 | C53: [-]
A54: Počet pracovních dnů úklidu: | B54: =NETWORKDAYS($C$1,$D$1,$A$64:$A$140) -> 1008 | M54: =NETWORKDAYS(K54,L54,K55) -> 0
A55: Počet týdnů úklidu: | B55: =B57*52 -> 208
A56: Počet měsíců úklidu: | B56: =B57*12 -> 48
A57: Počet let úklidu | B57: =YEAR(D1)-YEAR(C1) -> 4
A58: CENA CELKEM: | B58: =ROUND(SUM(S4:S51),0)/4 -> 0 | E58: [Kč/rok]
A63: svátky: | B63: četnost úklidu | C63: označení | D63: období úklidu | G63: Kritéria
A64: 2019-01-01 | B64: denně | C64: 0 | D64: 1. Q | G64: =$F$3 -> uklízí se
A65: 2019-04-19 | B65: týdně | C65: 1 | D65: 2. Q | G65: =B64 -> denně
A66: 2019-04-22 | B66: měsíčně | D66: 3. Q
A67: 2019-05-01 | B67: čtvrtletně | D67: 4. Q | G67: =$F$3 -> uklízí se
A68: 2019-05-08 | B68: ročně | D68: leden | G68: =B65 -> týdně
A69: 2019-07-05 | B69: sezonně | D69: únor
A70: 2019-10-28 | D70: březen | G70: =$F$3 -> uklízí se
A71: 2019-12-24 | D71: duben | G71: =B66 -> měsíčně
A72: 2019-12-25 | D72: květen
A73: 2019-12-26 | D73: červen | G73: =$F$3 -> uklízí se
A74: 2020-01-01 | D74: červenec | G74: =B67 -> čtvrtletně
A75: 2020-04-10 | D75: srpen
A76: 2020-04-13 | D76: září | G76: =$F$3 -> uklízí se
A77: 2020-05-01 | D77: říjen | G77: =B68 -> ročně
A78: 2020-05-08 | D78: listopat
A79: 2020-07-06 | D79: prosinec
A80: 2020-09-28
A81: 2020-10-28
A82: 2020-11-17
A83: 2020-12-24
A84: 2020-12-25
A85: 2021-01-01
A86: 2021-04-02
A87: 2021-04-05
A88: 2021-07-05
A89: 2021-07-06
A90: 2021-09-28
A91: 2021-10-28
A92: 2021-11-17
A93: 2021-12-24
A94: 2022-04-15
A95: 2022-04-18
A96: 2022-07-05
A97: 2022-07-06
A98: 2022-09-28
A99: 2022-10-28
A100: 2022-11-17
A101: 2022-12-26
A102: 2023-04-07
A103: 2023-04-10
A104: 2023-05-01
A105: 2023-05-08
A106: 2023-07-05
A107: 2023-07-06
A108: 2023-09-28
A109: 2023-11-17
A110: 2023-12-25
A111: 2023-12-26
A112: 2024-01-01
A113: 2024-03-29
A114: 2024-04-01
A115: 2024-05-01
A116: 2024-05-08
A117: 2024-07-05
A118: 2024-10-28
A119: 2024-12-24
A120: 2024-12-26
A121: 2024-12-26
A122: 2025-01-01
A123: 2025-04-18
A124: 2025-04-21
A125: 2025-10-28
A126: 2025-11-17
A127: 2025-12-24
A128: 2025-12-25
A129: 2025-12-26
A130: 2026-01-01
A131: 2026-04-06
A132: 2026-05-08
A133: 2026-07-05
A134: 2026-07-06
A135: 2026-09-28
A136: 2026-10-28
A137: 2026-11-17
A138: 2026-12-24
A139: 2026-12-25
A140: 2026-12-26

Sheet Karty úklidu
A1: V komentáři jsou zkatky pro tisk
A2: Karta úklidu | D2: ='Rozpis úklidu'!$A$1 -> kolej: Vltava, VŠE
A3: DENNÍ ÚKLID DNE: | B3: =NOW() -> 2022-09-08T16:19:41.390
A4: ='Rozpis úklidu'!$A$3 -> Úklidová jednotka | B4: ='Rozpis úklidu'!$D$3 -> počet úklidových jednotek | C4: Doba úklidu [hod.] | D4: ='Rozpis úklidu'!$M$3 -> Popis činnosti | E4: ='Rozpis úklidu'!$R$3 -> cena celkem za všechny úklidové jednotky (prac. dny) [Kč] | F4: Správně uklizené jednotky | G4: Smluvní pokuta [Kč] | H4: Poznámka
A5: ='Rozpis úklidu'!A5 -> patro chodba s krčkem | B5: ='Rozpis úklidu'!D5 -> 5 | C5: ='Rozpis úklidu'!O5*B5/60 -> 3.333333333 | D5: ='Rozpis úklidu'!M5 -> Úklidová činnost č. 1 | E5: ='Rozpis úklidu'!O5*F5/60*'Základní údaje'!$B$11 -> 0 | F5: =B5 -> 5 | G5: =IF(F5<B5,(B5-F5)*('Rozpis úklidu'!N5/60*'Základní údaje'!$B$11)*2,0) -> 0
A6: ='Rozpis úklidu'!A9 -> studovny | B6: ='Rozpis úklidu'!D9 -> 10 | C6: ='Rozpis úklidu'!O9*B6/60 -> 2.5 | D6: ='Rozpis úklidu'!M9 -> Úklidová činnost č. 3 | E6: ='Rozpis úklidu'!O9*F6/60*'Základní údaje'!$B$11 -> 0 | F6: =B6 -> 10 | G6: =IF(F6<B6,(B6-F6)*('Rozpis úklidu'!N9/60*'Základní údaje'!$B$11)*2,0) -> 0
A7: ='Rozpis úklidu'!A12 -> prádelna + pračky a sušičky | B7: ='Rozpis úklidu'!D12 -> 1 | C7: ='Rozpis úklidu'!O12*B7/60 -> 0.1666666667 | D7: ='Rozpis úklidu'!M12 -> Úklidová činnost č. 4 | E7: ='Rozpis úklidu'!O12*F7/60*'Základní údaje'!$B$11 -> 0 | F7: =B7 -> 1 | G7: =IF(F7<B7,(B7-F7)*('Rozpis úklidu'!N12/60*'Základní údaje'!$B$11)*2,0) -> 0
A8: Úklidová pohotovost + Operativní úklidové práce dle požadavku vedoucí koleje | B8: ='Základní údaje'!B11 -> 0 | E8: =B8/60*F8 -> 0 | G8: 0
B9: Celkem hodin | C9: =CONCATENATE(FIXED(SUM(C5:C7),2)," / ",FIXED(C5+C6+C7+C30+C47,2)) -> 6,00 / 7,40 | D9: K FAKTURACI CELKEM: | E9: =SUM(E5:E8) -> 0 | G9: =SUM(G5:G8) -> 0
A10: Podpis vedoucí směny: | D10: Podpis zástupce vedení koleje:
A12: Karta úklidu | D12: ='Rozpis úklidu'!$A$1 -> kolej: Vltava, VŠE
A13: TÝDENNÍ ÚKLID TÝDEN: | B13: =WEEKNUM(TODAY(),1) -> 37 | D13: =(NOW()) -> 2022-09-08T16:19:41.390
A14: ='Rozpis úklidu'!$A$3 -> Úklidová jednotka | B14: ='Rozpis úklidu'!$D$3 -> počet úklidových jednotek | C14: Doba úklidu [hod.] | D14: ='Rozpis úklidu'!$M$3 -> Popis činnosti | E14: ='Rozpis úklidu'!$R$3 -> cena celkem za všechny úklidové jednotky (prac. dny) [Kč] | F14: Správně uklizené jednotky | G14: Smluvní pokuta [Kč] | H14: Poznámka
A15: =CONCATENATE('Rozpis úklidu'!A4," (",'Rozpis úklidu'!G4,"x týdně)") -> schody na střechu (1x týdně) | B15: ='Rozpis úklidu'!D4*'Rozpis úklidu'!G4 -> 3 | C15: ='Rozpis úklidu'!O4*B15/60 -> 0.175 | D15: ='Rozpis úklidu'!M4 -> vytření, setření prachu, včetně zábradlí | E15: ='Rozpis úklidu'!O4*F15/60*'Základní údaje'!$B$11 -> 0 | F15: =B15 -> 3 | G15: =IF(F15<B15,(B15-F15)*('Rozpis úklidu'!N4/60*'Základní údaje'!$B$11)*2,0) -> 0
A16: =CONCATENATE('Rozpis úklidu'!A7," (",'Rozpis úklidu'!G7,"x týdně)") -> schodiště mezi patry (2x týdně) | B16: ='Rozpis úklidu'!D7*'Rozpis úklidu'!G7 -> 30 | C16: ='Rozpis úklidu'!O7*B16/60 -> 1.5 | D16: ='Rozpis úklidu'!M7 -> Úklidová činnost č. 1 | E16: ='Rozpis úklidu'!O7*F16/60*'Základní údaje'!$B$11 -> 0 | F16: =B16 -> 30 | G16: =IF(F16<B16,(B16-F16)*('Rozpis úklidu'!N7/60*'Základní údaje'!$B$11)*2,0) -> 0
A17: =CONCATENATE('Rozpis úklidu'!A8," (",'Rozpis úklidu'!G8,"x týdně)") -> zábradlí podél schodiště (2x týdně) | B17: ='Rozpis úklidu'!D8*'Rozpis úklidu'!G8 -> 30 | C17: ='Rozpis úklidu'!O8*B17/60 -> 1 | D17: ='Rozpis úklidu'!M8 -> mytí zábradlí | E17: ='Rozpis úklidu'!O8*F17/60*'Základní údaje'!$B$11 -> 0 | F17: =B17 -> 30 | G17: =IF(F17<B17,(B17-F17)*('Rozpis úklidu'!N8/60*'Základní údaje'!$B$11)*2,0) -> 0
A18: =CONCATENATE('Rozpis úklidu'!A10," (",'Rozpis úklidu'!G10,"x týdně)") -> sušárny (1x týdně) | B18: ='Rozpis úklidu'!D10*'Rozpis úklidu'!G10 -> 2 | C18: ='Rozpis úklidu'!O10*B18/60 -> 0.3333333333 | D18: ='Rozpis úklidu'!M10 -> Úklidová činnost č. 3 | E18: ='Rozpis úklidu'!O10*F18/60*'Základní údaje'!$B$11 -> 0 | F18: =B18 -> 2 | G18: =IF(F18<B18,(B18-F18)*('Rozpis úklidu'!N10/60*'Základní údaje'!$B$11)*2,0) -> 0
A19: =CONCATENATE('Rozpis úklidu'!A11," (",'Rozpis úklidu'!G11,"x týdně)") -> společná kuchyňka (2x týdně) | B19: ='Rozpis úklidu'!D11*'Rozpis úklidu'!G11 -> 2 | C19: ='Rozpis úklidu'!O11*B19/60 -> 0.6666666667 | D19: ='Rozpis úklidu'!M11 -> Úklidová činnost č. 5 | E19: ='Rozpis úklidu'!O11*F19/60*'Základní údaje'!$B$11 -> 0 | F19: =B19 -> 2 | G19: =IF(F19<B19,(B19-F19)*('Rozpis úklidu'!N11/60*'Základní údaje'!$B$11)*2,0) -> 0
A20: =CONCATENATE('Rozpis úklidu'!A13," (",'Rozpis úklidu'!G13,"x týdně)") -> místnost úklízeček a úklid.prost. (1x týdně) | B20: ='Rozpis úklidu'!D13*'Rozpis úklidu'!G13 -> 1 | C20: ='Rozpis úklidu'!O13*B20/60 -> 0.08333333333 | D20: ='Rozpis úklidu'!M13 -> Úklidová činnost č. 3 | E20: ='Rozpis úklidu'!O13*F20/60*'Základní údaje'!$B$11 -> 0 | F20: 1 | G20: =IF(F20<B20,(B20-F20)*('Rozpis úklidu'!N13/60*'Základní údaje'!$B$11)*2,0) -> 0
A21: =CONCATENATE('Rozpis úklidu'!A14," (",'Rozpis úklidu'!G14,"x týdně)") -> 045 sklad lůžkovin (2x týdně) | B21: ='Rozpis úklidu'!D14*'Rozpis úklidu'!G14 -> 2 | C21: ='Rozpis úklidu'!O14*B21/60 -> 0.2833333333 | D21: ='Rozpis úklidu'!M14 -> Úklidová činnost č. 3 | E21: ='Rozpis úklidu'!O14*F21/60*'Základní údaje'!$B$11 -> 0 | F21: =B21 -> 2 | G21: =IF(F21<B21,(B21-F21)*('Rozpis úklidu'!N14/60*'Základní údaje'!$B$11)*2,0) -> 0
A22: =CONCATENATE('Rozpis úklidu'!A15," (",'Rozpis úklidu'!G15,"x týdně)") -> 023 sklad (1x týdně) | B22: ='Rozpis úklidu'!D15*'Rozpis úklidu'!G15 -> 1 | C22: ='Rozpis úklidu'!O15*B22/60 -> 0.1833333333 | D22: ='Rozpis úklidu'!M15 -> Úklidová činnost č. 3 | E22: ='Rozpis úklidu'!O15*F22/60*'Základní údaje'!$B$11 -> 0 | F22: 1 | G22: =IF(F22<B22,(B22-F22)*('Rozpis úklidu'!N15/60*'Základní údaje'!$B$11)*2,0) -> 0
A23: =CONCATENATE('Rozpis úklidu'!A16," (",'Rozpis úklidu'!G16,"x týdně)") -> 024 sklad - nábytek (1x týdně) | B23: ='Rozpis úklidu'!D16*'Rozpis úklidu'!G16 -> 1 | C23: ='Rozpis úklidu'!O16*B23/60 -> 0.1833333333 | D23: ='Rozpis úklidu'!M16 -> Úklidová činnost č. 3 | E23: ='Rozpis úklidu'!O16*F23/60*'Základní údaje'!$B$11 -> 0 | F23: =B23 -> 1 | G23: =IF(F23<B23,(B23-F23)*('Rozpis úklidu'!N16/60*'Základní údaje'!$B$11)*2,0) -> 0
A24: ='Rozpis úklidu'!A36 -> předsíň | B24: 0 | C24: ='Rozpis úklidu'!O36*B24/60 -> 0 | D24: ='Rozpis úklidu'!M36 -> Úklidová činnost č. 7 | E24: ='Rozpis úklidu'!O36*F24/60*'Základní údaje'!$B$11 -> 0 | F24: =B24 -> 0 | G24: =IF(F24<B24,(B24-F24)*('Rozpis úklidu'!N36/60*'Základní údaje'!$B$11)*2,0) -> 0
A25: ='Rozpis úklidu'!A37 -> wc | B25: 0 | C25: ='Rozpis úklidu'!O37*B25/60 -> 0 | D25: ='Rozpis úklidu'!M37 -> Úklidová činnost č. 14 | E25: ='Rozpis úklidu'!O37*F25/60*'Základní údaje'!$B$11 -> 0 | F25: =B25 -> 0 | G25: =IF(F25<B25,(B25-F25)*('Rozpis úklidu'!N37/60*'Základní údaje'!$B$11)*2,0) -> 0
A26: ='Rozpis úklidu'!A38 -> koupelna se sprchou | B26: 0 | C26: ='Rozpis úklidu'!O38*B26/60 -> 0 | D26: ='Rozpis úklidu'!M38 -> Úklidová činnost č. 15 | E26: ='Rozpis úklidu'!O38*F26/60*'Základní údaje'!$B$11 -> 0 | F26: 0 | G26: =IF(F26<B26,(B26-F26)*('Rozpis úklidu'!N38/60*'Základní údaje'!$B$11)*2,0) -> 0
A27: ='Rozpis úklidu'!A39 -> kuchyňka | B27: 0 | C27: ='Rozpis úklidu'!O39*B27/60 -> 0 | D27: ='Rozpis úklidu'!M39 -> Úklidová činnost č. 5 | E27: ='Rozpis úklidu'!O39*F27/60*'Základní údaje'!$B$11 -> 0 | F27: 0 | G27: =IF(F27<B27,(B27-F27)*('Rozpis úklidu'!N39/60*'Základní údaje'!$B$11)*2,0) -> 0
A28: ='Rozpis úklidu'!A41 -> hotelový dvolůžkový, po odjezdu | B28: 0 | C28: ='Rozpis úklidu'!O41*B28/60 -> 0 | D28: ='Rozpis úklidu'!M41 -> Úklidová činnost č. 8 | E28: ='Rozpis úklidu'!O41*F28/60*'Základní údaje'!$B$11 -> 0 | F28: =B28 -> 0 | G28: =IF(F28<B28,(B28-F28)*('Rozpis úklidu'!N41/60*'Základní údaje'!$B$11)*2,0) -> 0
A29: ='Rozpis úklidu'!A42 -> hotelový dvolůžkový, průběžně | B29: 0 | C29: ='Rozpis úklidu'!O42*B29/60 -> 0 | D29: ='Rozpis úklidu'!M42 -> Úklidová činnost č. 9 | E29: ='Rozpis úklidu'!O42*F29/60*'Základní údaje'!$B$11 -> 0 | F29: =B29 -> 0 | G29: =IF(F29<B29,(B29-F29)*('Rozpis úklidu'!N42/60*'Základní údaje'!$B$11)*2,0) -> 0
B30: celkem hodin/den | C30: =SUM(C15:C29)/5 -> 0.8816666667 | D30: K FAKTURACI CELKEM: | E30: =SUM(E15:E29) -> 0 | G30: =SUM(G15:G29) -> 0
A31: Podpis vedoucí směny: | D31: Podpis zástupce vedení koleje:
A33: Karta úklidu | D33: ='Rozpis úklidu'!$A$1 -> kolej: Vltava, VŠE
A34: MĚSÍČNÍ ÚKLID MĚSÍC: | B34: =MONTH(D34) -> 9 | D34: =NOW() -> 2022-09-08T16:19:41.390
A35: ='Rozpis úklidu'!$A$3 -> Úklidová jednotka | B35: ='Rozpis úklidu'!$D$3 -> počet úklidových jednotek | C35: Doba úklidu [hod.] | D35: ='Rozpis úklidu'!$M$3 -> Popis činnosti | E35: ='Rozpis úklidu'!$R$3 -> cena celkem za všechny úklidové jednotky (prac. dny) [Kč] | F35: Správně uklizené jednotky | G35: Smluvní pokuta [Kč] | H35: Poznámka
A36: =CONCATENATE('Rozpis úklidu'!A6," (",'Rozpis úklidu'!G6,"x ",'Rozpis úklidu'!F6,")") -> skleněné plochy na chodbách (1x měsíčně) | B36: ='Rozpis úklidu'!D6*'Rozpis úklidu'!G6 -> 125 | C36: ='Rozpis úklidu'!O6*B36/60 -> 10.41666667 | D36: ='Rozpis úklidu'!M6 -> umýt, vyleštit | E36: ='Rozpis úklidu'!O6*F36/60*'Základní údaje'!$B$11 -> 0 | F36: =B36 -> 125 | G36: =IF(F36<B36,(B36-F36)*('Rozpis úklidu'!N6/60*'Základní údaje'!$B$11)*2,0) -> 0
A37: =CONCATENATE('Rozpis úklidu'!A44," / ",'Rozpis úklidu'!F44," (",'Rozpis úklidu'!D44,")") -> okna velká / ročně (500) | B37: 0 | C37: ='Rozpis úklidu'!O44*B37/60 -> 0 | D37: ='Rozpis úklidu'!M44 -> Úklidová činnost č. 12 | E37: ='Rozpis úklidu'!O44*F37/60*'Základní údaje'!$B$11 -> 0 | F37: =B37 -> 0 | G37: =IF(F37<B37,(B37-F37)*('Rozpis úklidu'!N44/60*'Základní údaje'!$B$11)*2,0) -> 0
A38: =CONCATENATE('Rozpis úklidu'!A45," / ",'Rozpis úklidu'!F45," (",'Rozpis úklidu'!D45,")") -> balkonové dveře / ročně (52) | B38: 0 | C38: ='Rozpis úklidu'!O45*B38/60 -> 0 | D38: ='Rozpis úklidu'!M45 -> Úklidová činnost č. 12 | E38: ='Rozpis úklidu'!O45*F38/60*'Základní údaje'!$B$11 -> 0 | F38: =B38 -> 0 | G38: =IF(F38<B38,(B38-F38)*('Rozpis úklidu'!N45/60*'Základní údaje'!$B$11)*2,0) -> 0
A39: =CONCATENATE('Rozpis úklidu'!A46," / ",'Rozpis úklidu'!F46," (",'Rozpis úklidu'!D46,")") -> malé okno / ročně (65) | B39: 0 | C39: ='Rozpis úklidu'!O46*B39/60 -> 0 | D39: ='Rozpis úklidu'!M46 -> Úklidová činnost č. 12 | E39: ='Rozpis úklidu'!O46*F39/60*'Základní údaje'!$B$11 -> 0 | F39: 0 | G39: =IF(F39<B39,(B39-F39)*('Rozpis úklidu'!N46/60*'Základní údaje'!$B$11)*2,0) -> 0
A40: =CONCATENATE('Rozpis úklidu'!A47," / ",'Rozpis úklidu'!F47," (",'Rozpis úklidu'!D47,")") -> čistění matrací / ročně (532) | B40: 0 | C40: ='Rozpis úklidu'!O47*B40/60 -> 0 | D40: ='Rozpis úklidu'!M47 -> Úklidová činnost č. 13 | E40: ='Rozpis úklidu'!O47*F40/60*'Základní údaje'!$B$11 -> 0 | F40: =B40 -> 0 | G40: =IF(F40<B40,(B40-F40)*('Rozpis úklidu'!N47/60*'Základní údaje'!$B$11)*2,0) -> 0
A41: =CONCATENATE('Rozpis úklidu'!A48," / ",'Rozpis úklidu'!F48," (",'Rozpis úklidu'!D48,")") -> kontrola stavu úklidu při odjezdu / ročně (266) | B41: 0 | C41: ='Rozpis úklidu'!O48*B41/60 -> 0 | D41: ='Rozpis úklidu'!M48 -> Úklidová činnost č. 10 | E41: ='Rozpis úklidu'!O48*F41/60*'Základní údaje'!$B$11 -> 0 | F41: 0 | G41: =IF(F41<B41,(B41-F41)*('Rozpis úklidu'!N48/60*'Základní údaje'!$B$11)*2,0) -> 0
A42: =CONCATENATE('Rozpis úklidu'!A31," / ",'Rozpis úklidu'!F31," (",'Rozpis úklidu'!D31,")") -> pokoj generální úklid / ročně (266) | B42: 0 | C42: ='Rozpis úklidu'!O31*B42/60 -> 0 | D42: ='Rozpis úklidu'!M31 -> Úklidová činnost č. 6 | E42: ='Rozpis úklidu'!O31*F42/60*'Základní údaje'!$B$11 -> 0 | F42: =B42 -> 0 | G42: =IF(F42<B42,(B42-F42)*('Rozpis úklidu'!N31/60*'Základní údaje'!$B$11)*2,0) -> 0
A43: =CONCATENATE('Rozpis úklidu'!A32," / ",'Rozpis úklidu'!F32," (",'Rozpis úklidu'!D32,")") -> předsíň - generální úklid / ročně (133) | B43: 0 | C43: ='Rozpis úklidu'!O32*B43/60 -> 0 | D43: ='Rozpis úklidu'!M32 -> Úklidová činnost č. 7 | E43: ='Rozpis úklidu'!O32*F43/60*'Základní údaje'!$B$11 -> 0 | F43: =B43 -> 0 | G43: =IF(F43<B43,(B43-F43)*('Rozpis úklidu'!N32/60*'Základní údaje'!$B$11)*2,0) -> 0
A44: =CONCATENATE('Rozpis úklidu'!A33," / ",'Rozpis úklidu'!F33," (",'Rozpis úklidu'!D33,")") -> koupelna se sprchou -generální úklid / ročně (133) | B44: 0 | C44: ='Rozpis úklidu'!O33*B44/60 -> 0 | D44: ='Rozpis úklidu'!M33 -> Úklidová činnost č. 15 | E44: ='Rozpis úklidu'!O33*F44/60*'Základní údaje'!$B$11 -> 0 | F44: 0 | G44: =IF(F44<B44,(B44-F44)*('Rozpis úklidu'!N33/60*'Základní údaje'!$B$11)*2,0) -> 0
A45: =CONCATENATE('Rozpis úklidu'!A34," / ",'Rozpis úklidu'!F34," (",'Rozpis úklidu'!D34,")") -> wc - generální úklid / ročně (133) | B45: 0 | C45: ='Rozpis úklidu'!O34*B45/60 -> 0 | D45: ='Rozpis úklidu'!M34 -> Úklidová činnost č. 14 | E45: ='Rozpis úklidu'!O34*F45/60*'Základní údaje'!$B$11 -> 0 | F45: 0 | G45: =IF(F45<B45,(B45-F45)*('Rozpis úklidu'!N34/60*'Základní údaje'!$B$11)*2,0) -> 0
A46: =CONCATENATE('Rozpis úklidu'!A35," / ",'Rozpis úklidu'!F35," (",'Rozpis úklidu'!D35,")") -> kuchyňka - generální úklid / ročně (133) | B46: 0 | C46: ='Rozpis úklidu'!O35*B46/60 -> 0 | D46: ='Rozpis úklidu'!M35 -> Úklidová činnost č. 5 | E46: ='Rozpis úklidu'!O35*F46/60*'Základní údaje'!$B$11 -> 0 | F46: =B46 -> 0 | G46: =IF(F46<B46,(B46-F46)*('Rozpis úklidu'!N35/60*'Základní údaje'!$B$11)*2,0) -> 0
B47: celkem hodin/den | C47: =SUM(C36:C46)/20 -> 0.5208333333 | D47: K FAKTURACI CELKEM: | E47: =SUM(E36:E46) -> 0 | G47: =SUM(G36:G46) -> 0
A48: Podpis vedoucí směny: | D48: Podpis zástupce vedení koleje:
A50: Karta úklidu | D50: ='Rozpis úklidu'!$A$1 -> kolej: Vltava, VŠE
A51: SEZONNÍ ÚKLID MĚSÍC: | B51: =MONTH(D51) -> 9 | D51: =(NOW()) -> 2022-09-08T16:19:41.390
A52: ='Rozpis úklidu'!$A$3 -> Úklidová jednotka | B52: ='Rozpis úklidu'!$D$3 -> počet úklidových jednotek | C52: Doba úklidu [hod.] | D52: ='Rozpis úklidu'!$M$3 -> Popis činnosti | E52: ='Rozpis úklidu'!$R$3 -> cena celkem za všechny úklidové jednotky (prac. dny) [Kč] | F52: Správně uklizené jednotky | G52: Smluvní pokuta [Kč] | H52: Poznámka
A53: =CONCATENATE('Rozpis úklidu'!A31," / ",'Rozpis úklidu'!F31," (",'Rozpis úklidu'!D31,")") -> pokoj generální úklid / ročně (266) | B53: 0 | C53: ='Rozpis úklidu'!O31*B53/60 -> 0 | D53: ='Rozpis úklidu'!M31 -> Úklidová činnost č. 6 | E53: ='Rozpis úklidu'!O31*F53/60*'Základní údaje'!$B$11 -> 0 | F53: =B53 -> 0 | G53: =IF(F53<B53,(B53-F53)*('Rozpis úklidu'!N31/60*'Základní údaje'!$B$11)*2,0) -> 0
A54: =CONCATENATE('Rozpis úklidu'!A32," / ",'Rozpis úklidu'!F32," (",'Rozpis úklidu'!D32,")") -> předsíň - generální úklid / ročně (133) | B54: 0 | C54: ='Rozpis úklidu'!O32*B54/60 -> 0 | D54: ='Rozpis úklidu'!M32 -> Úklidová činnost č. 7 | E54: ='Rozpis úklidu'!O32*F54/60*'Základní údaje'!$B$11 -> 0 | F54: 0 | G54: =IF(F54<B54,(B54-F54)*('Rozpis úklidu'!N32/60*'Základní údaje'!$B$11)*2,0) -> 0
A55: =CONCATENATE('Rozpis úklidu'!A34," / ",'Rozpis úklidu'!F34," (",'Rozpis úklidu'!D34,")") -> wc - generální úklid / ročně (133) | B55: 0 | C55: ='Rozpis úklidu'!O33*B55/60 -> 0 | D55: ='Rozpis úklidu'!M34 -> Úklidová činnost č. 14 | E55: ='Rozpis úklidu'!O33*F55/60*'Základní údaje'!$B$11 -> 0 | F55: 0 | G55: =IF(F55<B55,(B55-F55)*('Rozpis úklidu'!N33/60*'Základní údaje'!$B$11)*2,0) -> 0
A56: =CONCATENATE('Rozpis úklidu'!A33," / ",'Rozpis úklidu'!F33," (",'Rozpis úklidu'!D33,")") -> koupelna se sprchou -generální úklid / ročně (133) | B56: 0 | C56: ='Rozpis úklidu'!O34*B56/60 -> 0 | D56: ='Rozpis úklidu'!M33 -> Úklidová činnost č. 15 | E56: ='Rozpis úklidu'!O34*F56/60*'Základní údaje'!$B$11 -> 0 | F56: 0 | G56: =IF(F56<B56,(B56-F56)*('Rozpis úklidu'!N34/60*'Základní údaje'!$B$11)*2,0) -> 0
A57: =CONCATENATE('Rozpis úklidu'!A35," / ",'Rozpis úklidu'!F35," (",'Rozpis úklidu'!D35,")") -> kuchyňka - generální úklid / ročně (133) | B57: 0 | C57: ='Rozpis úklidu'!O35*B57/60 -> 0 | D57: ='Rozpis úklidu'!M35 -> Úklidová činnost č. 5 | E57: ='Rozpis úklidu'!O35*F57/60*'Základní údaje'!$B$11 -> 0 | F57: 0 | G57: =IF(F57<B57,(B57-F57)*('Rozpis úklidu'!N35/60*'Základní údaje'!$B$11)*2,0) -> 0
A58: =CONCATENATE('Rozpis úklidu'!A48," / ",'Rozpis úklidu'!F48," (",'Rozpis úklidu'!D48,")") -> kontrola stavu úklidu při odjezdu / ročně (266) | B58: 0 | C58: ='Rozpis úklidu'!O48*B58/60 -> 0 | D58: ='Rozpis úklidu'!M48 -> Úklidová činnost č. 10 | E58: ='Rozpis úklidu'!O48*F58/60*'Základní údaje'!$B$11 -> 0 | F58: 0 | G58: =IF(F58<B58,(B58-F58)*('Rozpis úklidu'!N48/60*'Základní údaje'!$B$11)*2,0) -> 0
B59: celkem hodin | C59: =SUM(C53:C58) -> 0 | D59: K FAKTURACI CELKEM: | E59: =SUM(E53:E58) -> 0 | G59: =SUM(G53:G58) -> 0
A60: Podpis vedoucí směny: | D60: Podpis zástupce vedení koleje:
A62: Karta úklidu | D62: ='Rozpis úklidu'!$A$1 -> kolej: Vltava, VŠE
A63: ÚKLID O VÍKENDU DNE: | B63: =(NOW()) -> 2022-09-08T16:19:41.390
A64: ='Rozpis úklidu'!$A$3 -> Úklidová jednotka | B64: ='Rozpis úklidu'!$D$3 -> počet úklidových jednotek | C64: Doba úklidu [hod.] | D64: ='Rozpis úklidu'!$M$3 -> Popis činnosti | E64: cena celkem za všechny úklidové jednotky (VÍKEND) [Kč] | F64: Správně uklizené jednotky | G64: Smluvní pokuta [Kč] | H64: Poznámka
A65: =CONCATENATE('Rozpis úklidu'!A31," / ",'Rozpis úklidu'!F31," (",'Rozpis úklidu'!D31,")") -> pokoj generální úklid / ročně (266) | B65: 0 | C65: ='Rozpis úklidu'!O31*B65/60 -> 0 | D65: ='Rozpis úklidu'!M31 -> Úklidová činnost č. 6 | E65: ='Rozpis úklidu'!O31*F65/60*'Základní údaje'!$B$12 -> 0 | F65: =B65 -> 0 | G65: =IF(F65<B65,(B65-F65)*'Rozpis úklidu'!Q31*2,0) -> 0
A66: =CONCATENATE('Rozpis úklidu'!A32," / ",'Rozpis úklidu'!F32," (",'Rozpis úklidu'!D32,")") -> předsíň - generální úklid / ročně (133) | B66: 0 | C66: ='Rozpis úklidu'!O32*B66/60 -> 0 | D66: ='Rozpis úklidu'!M32 -> Úklidová činnost č. 7 | E66: ='Rozpis úklidu'!O32*F66/60*'Základní údaje'!$B$12 -> 0 | F66: =B66 -> 0 | G66: =IF(F66<B66,(B66-F66)*'Rozpis úklidu'!Q32*2,0) -> 0
A67: =CONCATENATE('Rozpis úklidu'!A33," / ",'Rozpis úklidu'!F33," (",'Rozpis úklidu'!D33,")") -> koupelna se sprchou -generální úklid / ročně (133) | B67: 0 | C67: ='Rozpis úklidu'!O33*B67/60 -> 0 | D67: ='Rozpis úklidu'!M33 -> Úklidová činnost č. 15 | E67: ='Rozpis úklidu'!O33*F67/60*'Základní údaje'!$B$12 -> 0 | F67: 0 | G67: =IF(F67<B67,(B67-F67)*'Rozpis úklidu'!Q33*2,0) -> 0
A68: =CONCATENATE('Rozpis úklidu'!A34," / ",'Rozpis úklidu'!F34," (",'Rozpis úklidu'!D34,")") -> wc - generální úklid / ročně (133) | B68: 0 | C68: ='Rozpis úklidu'!O34*B68/60 -> 0 | D68: ='Rozpis úklidu'!M34 -> Úklidová činnost č. 14 | E68: ='Rozpis úklidu'!O34*F68/60*'Základní údaje'!$B$12 -> 0 | F68: 0 | G68: =IF(F68<B68,(B68-F68)*'Rozpis úklidu'!Q34*2,0) -> 0
A69: =CONCATENATE('Rozpis úklidu'!A35," / ",'Rozpis úklidu'!F35," (",'Rozpis úklidu'!D35,")") -> kuchyňka - generální úklid / ročně (133) | B69: 0 | C69: ='Rozpis úklidu'!O35*B69/60 -> 0 | D69: ='Rozpis úklidu'!M35 -> Úklidová činnost č. 5 | E69: ='Rozpis úklidu'!O35*F69/60*'Základní údaje'!$B$12 -> 0 | F69: 0 | G69: =IF(F69<B69,(B69-F69)*'Rozpis úklidu'!Q35*2,0) -> 0
A70: =CONCATENATE('Rozpis úklidu'!A41," / ",'Rozpis úklidu'!F41," (",'Rozpis úklidu'!D41,")") -> hotelový dvolůžkový, po odjezdu / měsíčně (1) | B70: 0 | C70: ='Rozpis úklidu'!O41*B70/60 -> 0 | D70: ='Rozpis úklidu'!M41 -> Úklidová činnost č. 8 | E70: ='Rozpis úklidu'!O41*F70/60*'Základní údaje'!$B$12 -> 0 | F70: =B70 -> 0 | G70: =IF(F70<B70,(B70-F70)*'Rozpis úklidu'!Q41*2,0) -> 0
A71: =CONCATENATE('Rozpis úklidu'!A42," / ",'Rozpis úklidu'!F42," (",'Rozpis úklidu'!D42,")") -> hotelový dvolůžkový, průběžně / měsíčně (1) | B71: 0 | C71: ='Rozpis úklidu'!O42*B71/60 -> 0 | D71: ='Rozpis úklidu'!M42 -> Úklidová činnost č. 9 | E71: ='Rozpis úklidu'!O42*F71/60*'Základní údaje'!$B$12 -> 0 | F71: =B71 -> 0 | G71: =IF(F71<B71,(B71-F71)*'Rozpis úklidu'!Q42*2,0) -> 0
A72: =CONCATENATE('Rozpis úklidu'!A48," / ",'Rozpis úklidu'!F48," (",'Rozpis úklidu'!D48,")") -> kontrola stavu úklidu při odjezdu / ročně (266) | B72: 0 | C72: ='Rozpis úklidu'!O48*B72/60 -> 0 | D72: ='Rozpis úklidu'!M48 -> Úklidová činnost č. 10 | E72: ='Rozpis úklidu'!O48*F72/60*'Základní údaje'!$B$12 -> 0 | F72: 0 | G72: =IF(F72<B72,(B72-F72)*'Rozpis úklidu'!Q48*2,0) -> 0
B73: celkem hodin/víkend | C73: =SUM(C65:C72) -> 0 | D73: K FAKTURACI CELKEM: | E73: =SUM(E65:E72) -> 0 | G73: =SUM(G65:G72) -> 0
A74: Podpis vedoucí směny: | D74: Podpis zástupce vedení koleje:

Sheet Činnosti úklidu
B1: Úklidová činnost
B2: Úklidová činnost probíhá v čase od 07:00 hod. do 15.00 hod. v jednosměnném provozu v pětidenním pracovním týdnu, úklid hotelových pokojů musí být dle potřeby zajištěn i o víkendu. V době nastěhování a vystěhování studentů koncem letního semestru a začátkem zimního semestru stanovuje dobu pro úklid podle aktuálních potřeb vedoucí/zástupce vedoucí koleje a to včetně úklidu o víkendu. Při úklidu je potřeba používat úklidové, čistící a desinfekční prostředky vhodné pro daný předmět úklidu a dodržovat návody na použití příslušných úklidových, čistících a desinfekčních prostředků a bezpečnostní a hygienická pravidla
A3: Definice pojmů:
A4: Zametání | B4: pomocí vhodného smetáku zamést dané podlahové plochy.
A5: Vytírání | B5: pomocí mopu za použití vody a odpovídajícího saponátu vytřít dané podlahové plochy.
A6: Mytí | B6: pomocí hadru, utěrky nebo houbičky, za použití vody a odpovídajícího saponátu, umýt plochy nábytku, dveří, spotřebičů, keramických a jiných obkladů, topení apod.
A7: Čištění | B7: důkladné čištění, zvláště skvrn, za pomocí odpovídajících čisticích prostředků, ploch nábytku, dveří, spotřebičů, keramických a jiných obkladů, topení apod.
A8: Desinfekce | B8: po umytí nebo vyčištění daných ploch, podlah, spotřebičů aj. použít podle návodu odpovídající desinfekční prostředek.
A9: Leštění | B9: leštění všech skleněných a zrcadlových ploch za použití odpovídajícího přípravku na mytí a leštění skel.
A10: Luxování | B10: čištění podlah za použití vysavače.
A11: Strojové čištění | B11: se provádí za použití čistícího stroje na vodní nebo parní bázi (strojové čištění postelí, matrací, koberců apod.).
A12: Stírání prachu | B12: setření prachu vhodnou utěrkou za použití odpovídajícího přípravku na odstranění prachu, odstranění pavučin.
A13: Úklid odpadů | B13: řádné uvolnění, umytí, vyčištění a vydesinfikování odpadů na soc. zařízeních, WC, umývárnách a sprchových koutech za použití odpovídajících přípravků.
A14: Mimořádný úklid | B14: úklid znečištěného WC (mimo mísu), umývárny nebo společných prostor zvratky nebo exkrementy (uklízečka vyrozumí vedoucí/zástupce vedoucí koleje).
A15: Mytí oken | B15: umytí parapetů na mokro za použití odpovídajícího saponátu, umytí rámů oken na mokro za použití odpovídajícího saponátu, umytí a vyleštění oken odpovídajícím přípravkem na mytí a leštění oken.
A16: Zalévání květin | B16: zalití květin čistou odstátou vodou v přiměřeném množství s ohledem na druh rostliny. Podle potřeby použít odpovídající hnojivo v dávkování podle návodu k použití.
A17: Vynášení a likvidace odpadu | B17: vynesení odpadu ze všech odpadních nádob (i z prostoru okolo těchto nádob), a ze skartovaček, umytí odpadních nádob a doplnění pytlů na odpadky do odpadních nádob. Odpad dle možnosti vhodným způsobem třídit.
A18: Doplňování hotelových potřeb | B18: v hotelovém provozu doplnit toaletní papír do zásobníků doplnit ručníky a hotelové mýdlo.
A20: Číslo typové činnosti | B20: Popis typových pracovních činností:
A21: 1. | B21: Úklidem společných prostor, podlah chodeb, schodišť a vestibulu se rozumí: zamést a vytřít podlahy, odstranit našlapané žvýkačky a jiné nečistoty, vyluxovat podlahy kryté kobercem. Umýt parapety, zábradlí a hasicí přístroje umístěné na chodbách, vyleštit skleněné plochy na chodbách a ve vestibulech, setřít prach a pavučiny. Sepsat a nahlásit vedení koleje všechny závady a škody.
A22: 2. | B22: Úklidem balkonů se rozumí: zamést a vytřít podlahy, odstranit našlapané žvýkačky a jiné nečistoty, umýt parapety a zábradlí. Odstranit pavučiny. Vynést odpady a popř. i vysypat popelníky.
A23: 3. | B23: Úklidem společenských, (studoven, kluboven apod.) zájmových (posiloven, tělocvičen apod.) a zasedacích místností, kanceláří, skladů, šaten a výtahů se rozumí: zamést a vytřít podlahy, podlahy pokryté kobercem vyluxovat, setřít prach a pavučiny ze všech dosažitelných a volně přístupných míst a zařízení místností (topení, cvičební nářadí apod.), umýt a vyčistit skvrny kolem klik, dveří, vypínačů a světel. Srovnat nábytek a jiné vybavení místností. Srovnat nebo dověsit záclony a závěsy. Vyleštit zrcadla. Vynést odpad. Sepsat a nahlásit vedení koleje všechny závady a škody.
A24: 4. | B24: Úklidem prádelen se rozumí: zamést a vytřít podlahy, setřít prach a pavučiny ze všech dosažitelných a volně přístupných míst a zařízení místností (praček, topení, apod.). Vyčistit filtry praček, vyčistit zásobníky na prášek. Umýt a vyčistit dveře, kliky, vypínače a světla. Srovnat nebo dověsit záclony a závěsy. Vyleštit zrcadla. Vynést odpad. Sepsat a nahlásit vedení koleje všechny závady a škody.
A25: 5. | B25: Úklidem kuchyněk se rozumí: umýt, vyčistit a vydesinfikovat sporák, vařič, mikrovlnnou troubu, digestoř, pracovní desky a zařízení místnosti kuchyňky. Umýt, vyčistit a vydesinfikovat obklady. Pokud je kuchyňka vybavena nádobím umýt nádobí. Odmrazit a vyčistit lednici. Odstranit všechny prošlé nebo kazící se potraviny. Zamést a vytřít podlahy. Vynést odpad. Setřít prach a pavučiny. Sepsat a nahlásit vedení koleje všechny závady a škody.
A26: 6. | B26: Generálním úklidem pokojů po odchodu studentů se rozumí: umýt nábytek z venku (postele, stoly, židle, police, skříně apod.) i zevnitř (skříně, šuplíky, peřináče, postele apod.) a vyčistit od skvrn. Vyleštit zrcadla a okna. Vyluxovat/strojově vyčistit matrace postelí. Setřít prach a pavučiny (včetně žaluzií). Umýt a vyčistit veškeré obložení, lišty, obrazy, dveře, kliky, rámy oken, parapety, vypínače, zásuvky, topení, světla, lampičky apod. Umýt ledničku zevnitř i zvenku. Zamést a vytřít podlahy, podlahy kryté kobercem vyluxovat, a to i pod a za postelí, křesly a závěsy. Srovnat nebo dověsit záclony a závěsy, srovnat nábytek a jiné vybavení pokoje. Vynést odpad, umýt, otřít a vyleštit odpadkový koš. Zlikvidovat případné komáry a mouchy. Vyvětrat a popř. i navonět. Sepsat a nahlásit vedení koleje všechny závady a škody. Případné nalezené věci po ubytovaných předat vedení koleje.
A27: 7. | B27: Úklidem předsíní buněk se rozumí: úklid sociálního zařízení podle bodu 14. a 15. úklid kuchyňky podle bodu 5. Zamést a vytřít podlahy. Umýt a vyčistit pracovní plochy a nábytek. Setřít prach a pavučiny. Vynést odpad. Sepsat a nahlásit vedení koleje všechny závady a škody.
A28: 8. | B28: Úklidem hotelových pokojů po vystěhování se rozumí: umýt nábytek z venku (postele, stoly, židle, police, skříně apod.) i zevnitř (skříně, šuplíky, peřináče, postele apod.) a vyčistit od skvrn. Vyleštit zrcadla a okna. Převléct a ustlat postele, vyluxovat/strojově vyčistit matrace postelí. Setřít prach a pavučiny (včetně žaluzií). Umýt a vyčistit veškeré obložení, lišty, obrazy, dveře, kliky, rámy oken, parapety, vypínače, zásuvky, televizi, topení, světla, lampičky apod. Umýt nádobí. Umýt ledničku zevnitř i zvenku. Zamést a vytřít podlahy, podlahy kryté kobercem vyluxovat, a to i pod a za postelí, křesly a závěsy. Srovnat nebo dověsit záclony a závěsy, srovnat nábytek a jiné vybavení pokoje. Vynést odpad, umýt, otřít a vyleštit odpadkový koš. Zlikvidovat případné komáry a mouchy. Doplnit hotelové potřeby. Vyvětrat a popř. i navonět. Předat složené použité prádlo a ručníky skladní. Sepsat a nahlásit vedení koleje všechny závady a škody. Případné nalezené věci po hostech předat vedení koleje.
A29: 9. | B29: Úklidem hotelových pokojů v průběhu ubytování se rozumí: ustlání postelí, popř. výměna ložního prádla každý 4. den pobytu, výměna osušek a ručníků, doplnění toaletního papíru, vynesení odpadků, umytí koupelny (sprchový kout, WC, umyvadlo), vytření podlahy.
A30: 10. | B30: Přebráním uklizeného pokoje po studentech se rozumí: podle bodu 6. a 7. zkontrolovat úklid provedený studenty. Přebrat klíče od pokoje. Podepsat potvrzení o řádně provedeném úklidu a odevzdání klíčů. Sepsat a nahlásit vedení koleje všechny závady a škody. V případě nutnosti upozornit studenty na nedostatky v úklidu s tím, že je musí ve stanovené době odstranit, po té provést novou kontrolu úklidu. V případě, že ani napodruhé nebude pokoj řádně uklizen nahlásit tuto skutečnost vedení koleje.
A31: 11. | B31: Úklidem výtahu se rozumí: zametení a vytření podlahy, vyčištění dveřních drážek, mytí stěn, mytí světel, jsou li instalována vyleštění zrcadel.
A32: 12. | B32: Mytím oken se rozumí: mytí a leštění skel, mytí rámů, mytí parapetu, jsou-li instalovány setření žaluzií.
A33: 13. | B33: Čištěním matrací: vyčištění matrací parním strojem.
A34: 14. | B34: Úklidem WC se rozumí: umýt, vyčistit a vydesinfikovat místnost WC, umýt záchodovou mísu zevnitř i zvenku umýt nohu a trubku za WC, umýt prkýnko a nádobu na splachovací vodu, popř. umýt pisoáry, umyvadla, baterie, obklady, odpady, podlahy a dveře. Otřít držák na toaletní papír. Umýt dlaždičky a silikon od plísně. Vylít vodu a otřít pouzdro na WC štětku. Vyleštit zrcadla. Vynést odpad. Setřít prach a pavučiny. Vždy za použití odpovídajícího mycího/čistícího přípravku.
A35: 15. | B35: Úklidem koupelen a sprch se rozumí: umýt, vyčistit a vydesinfikovat umyvadlo zevnitř i zvenku včetně trubek pod ním, baterie, sprchový kout, obklady, poličku nad umyvadlem i ve sprchovém koutě, odpady, podlahy a dveře. Umýt stěny sprchového koutu, gumové těsnění popř. závěs sprchového koutu. Odstranit rez a vodní kámen. Vynést odpad. Vyleštit zrcadlo, poličku, sprchu a držák na sprchu. Umýt dlaždičky a silikon od plísně. Vynést odpad. Setřít prach a pavučiny. Vždy za použití odpovídajícího mycího/čistícího přípravku
